[Event "Titled Tuesday Blitz June 27 Late 2023"]
[White "Sargsyan, Anna M."]
[Black "Srdanovic, Jovana"]
[WhiteFideId "13308130"]
[BlackFideId "954810"]
[WhiteElo "2578"]
[BlackElo "2391"]
[Result "1-0"]
[Round "5"]
[TimeControl "180+2"]
[Date "2023.06.27"]
[WhiteClock "0:00:05"]
[BlackClock "0:00:02"]
[Board "96"]

1. d4 {[%clk 0:02:57]}  d5 {[%clk 0:02:58]} 2. c4 {[%clk 0:02:57]}  c6 {[%clk 0:02:58]} 3. cxd5 {[%clk 0:02:56]}  cxd5 {[%clk 0:02:58]} 4. Bf4 {[%clk 0:02:57]}  Nc6 {[%clk 0:02:53]} 5. e3 {[%clk 0:02:57]}  Nf6 {[%clk 0:02:53]} 6. Nc3 {[%clk 0:02:55]}  a6 {[%clk 0:02:53]} 7. Bd3 {[%clk 0:02:51]}  e6 {[%clk 0:02:52]} 8. Rc1 {[%clk 0:02:49]}  Be7 {[%clk 0:02:52]} 9. Nf3 {[%clk 0:02:47]}  O-O {[%clk 0:02:53]} 10. O-O {[%clk 0:02:48]}  Bd7 {[%clk 0:02:52]} 11. Qe2 {[%clk 0:02:40]}  Rc8 {[%clk 0:02:51]} 12. Ne5 {[%clk 0:02:37]}  Na5 {[%clk 0:02:47]} 13. Rc2 {[%clk 0:02:37]}  b5 {[%clk 0:02:46]} 14. Rfc1 {[%clk 0:02:37]}  Nc4 {[%clk 0:02:45]} 15. a4 {[%clk 0:02:29]}  Qa5 {[%clk 0:02:41]} 16. Nxd7 {[%clk 0:02:24]}  Nxd7 {[%clk 0:02:40]} 17. axb5 {[%clk 0:02:18]}  axb5 {[%clk 0:02:40]} 18. e4 {[%clk 0:02:18]}  dxe4 {[%clk 0:01:59]} 19. Nxe4 {[%clk 0:02:18]}  Ndb6 {[%clk 0:01:54]} 20. Bg5 {[%clk 0:02:04]}  Qb4 {[%clk 0:01:40]} 21. h4 {[%clk 0:02:03]}  h6 {[%clk 0:01:23]} 22. Bxh6 {[%clk 0:01:35]}  gxh6 {[%clk 0:01:22]} 23. Qg4+ {[%clk 0:01:35]}  Kh8 {[%clk 0:01:21]} 24. Qh5 {[%clk 0:01:36]}  Kg7 {[%clk 0:01:10]} 25. Rc3 {[%clk 0:01:34]}  Nd5 {[%clk 0:01:05]} 26. Bb1 {[%clk 0:01:19]}  Nxc3 {[%clk 0:00:49]} 27. Rxc3 {[%clk 0:01:20]}  Ne5 {[%clk 0:00:20]} 28. Qxe5+ {[%clk 0:00:17]}  f6 {[%clk 0:00:20]} 29. Qg3+ {[%clk 0:00:13]}  Kh8 {[%clk 0:00:19]} 30. Qg6 {[%clk 0:00:12]}  Rxc3 {[%clk 0:00:17]} 31. Qxh6+ {[%clk 0:00:12]}  Kg8 {[%clk 0:00:17]} 32. Qg6+ {[%clk 0:00:09]}  Kh8 {[%clk 0:00:16]} 33. Nxc3 {[%clk 0:00:08]}  f5 {[%clk 0:00:11]} 34. Qh6+ {[%clk 0:00:08]}  Kg8 {[%clk 0:00:11]} 35. Qxe6+ {[%clk 0:00:09]}  Kh8 {[%clk 0:00:11]} 36. Bxf5 {[%clk 0:00:08]}  Rf6 {[%clk 0:00:09]} 37. Qe5 {[%clk 0:00:06]}  Qxb2 {[%clk 0:00:08]} 38. Ne4 {[%clk 0:00:03]}  Qc1+ {[%clk 0:00:08]} 39. Kh2 {[%clk 0:00:04]}  Bd6 {[%clk 0:00:07]} 40. Nxd6 {[%clk 0:00:04]}  Qh6 {[%clk 0:00:04]} 41. Nf7+ {[%clk 0:00:04]}  Kg7 {[%clk 0:00:04]} 42. Nxh6 {[%clk 0:00:05]}  Kxh6 {[%clk 0:00:02]} 43. Qxf6+ {[%clk 0:00:05]} 1-0


[Site "https://www.chess.com"]

[Event "Titled Tuesday Blitz June 27 Late 2023"]
[White "Nefedov, Sergey"]
[Black "Davidson, Kevin"]
[WhiteFideId "24113417"]
[BlackFideId "2056810"]
[WhiteElo "2568"]
[BlackElo "2373"]
[Result "1/2-1/2"]
[Round "5"]
[TimeControl "180+2"]
[Date "2023.06.27"]
[WhiteClock "0:00:34"]
[BlackClock "0:00:05"]
[Board "98"]

1. d4 {[%clk 0:03:00]}  Nf6 {[%clk 0:02:59]} 2. Nf3 {[%clk 0:03:00]}  g6 {[%clk 0:02:59]} 3. c4 {[%clk 0:03:00]}  Bg7 {[%clk 0:03:00]} 4. Nc3 {[%clk 0:03:00]}  d6 {[%clk 0:03:01]} 5. Bg5 {[%clk 0:03:00]}  h6 {[%clk 0:03:00]} 6. Bf4 {[%clk 0:03:00]}  Nc6 {[%clk 0:02:54]} 7. d5 {[%clk 0:02:59]}  e5 {[%clk 0:02:52]} 8. dxc6 {[%clk 0:02:25]}  exf4 {[%clk 0:02:52]} 9. cxb7 {[%clk 0:02:25]}  Bxb7 {[%clk 0:02:52]} 10. g3 {[%clk 0:02:26]}  fxg3 {[%clk 0:02:16]} 11. hxg3 {[%clk 0:02:27]}  O-O {[%clk 0:02:14]} 12. Bg2 {[%clk 0:02:26]}  Re8 {[%clk 0:02:13]} 13. O-O {[%clk 0:02:25]}  Ne4 {[%clk 0:02:06]} 14. Nxe4 {[%clk 0:02:06]}  Bxe4 {[%clk 0:02:07]} 15. Nd4 {[%clk 0:01:54]}  Bxg2 {[%clk 0:01:57]} 16. Kxg2 {[%clk 0:01:55]}  Bxd4 {[%clk 0:01:40]} 17. Qxd4 {[%clk 0:01:56]}  Rxe2 {[%clk 0:01:40]} 18. Rae1 {[%clk 0:01:46]}  Qe7 {[%clk 0:01:35]} 19. Rxe2 {[%clk 0:01:44]}  Qxe2 {[%clk 0:01:36]} 20. Rc1 {[%clk 0:01:28]}  Rb8 {[%clk 0:01:18]} 21. b3 {[%clk 0:00:45]}  Qxa2 {[%clk 0:01:11]} 22. Ra1 {[%clk 0:00:45]}  Qxb3 {[%clk 0:01:08]} 23. Rxa7 {[%clk 0:00:46]}  Qb6 {[%clk 0:00:32]} 24. Qxb6 {[%clk 0:00:45]}  cxb6 {[%clk 0:00:19]} 25. Rd7 {[%clk 0:00:46]}  b5 {[%clk 0:00:20]} 26. cxb5 {[%clk 0:00:45]}  Rxb5 {[%clk 0:00:21]} 27. Rxd6 {[%clk 0:00:46]}  h5 {[%clk 0:00:13]} 28. Rc6 {[%clk 0:00:41]}  Kg7 {[%clk 0:00:13]} 29. Rd6 {[%clk 0:00:41]}  Rf5 {[%clk 0:00:10]} 30. Rc6 {[%clk 0:00:41]}  Rf6 {[%clk 0:00:10]} 31. Rc5 {[%clk 0:00:41]}  Ra6 {[%clk 0:00:10]} 32. f4 {[%clk 0:00:38]}  Kf6 {[%clk 0:00:09]} 33. Kh3 {[%clk 0:00:37]}  Rd6 {[%clk 0:00:08]} 34. Ra5 {[%clk 0:00:37]}  Rb6 {[%clk 0:00:06]} 35. Rc5 {[%clk 0:00:37]}  Rb3 {[%clk 0:00:05]} 36. Rc6+ {[%clk 0:00:36]}  Kg7 {[%clk 0:00:05]} 37. Rc5 {[%clk 0:00:36]}  f6 {[%clk 0:00:05]} 38. Rc7+ {[%clk 0:00:35]}  Kg8 {[%clk 0:00:03]} 39. Rc6 {[%clk 0:00:35]}  Kf7 {[%clk 0:00:03]} 40. Rc7+ {[%clk 0:00:35]}  Ke6 {[%clk 0:00:03]} 41. Rc6+ {[%clk 0:00:35]}  Kf5 {[%clk 0:00:03]} 42. Rc5+ {[%clk 0:00:35]}  Ke6 {[%clk 0:00:04]} 43. Rc6+ {[%clk 0:00:36]}  Kf5 {[%clk 0:00:04]} 44. Rc5+ {[%clk 0:00:34]}  Ke6 {[%clk 0:00:05]} 45. Rc6+ {[%clk 0:00:34]} 1/2-1/2


[Site "https://www.chess.com"]

[Event "Titled Tuesday Blitz June 27 Late 2023"]
[White "WindWhistler11"]
[Black "Fernandez Siles, Luis"]
[BlackFideId "2209420"]
[WhiteElo "2566"]
[BlackElo "2373"]
[Result "1-0"]
[Round "5"]
[TimeControl "180+2"]
[Date "2023.06.27"]
[WhiteClock "0:01:13"]
[BlackClock "0:00:03"]
[Board "99"]

1. Nf3 {[%clk 0:02:52]}  d6 {[%clk 0:02:58]} 2. g3 {[%clk 0:02:53]}  e5 {[%clk 0:02:57]} 3. Bg2 {[%clk 0:02:54]}  e4 {[%clk 0:02:56]} 4. Nd4 {[%clk 0:02:52]}  c5 {[%clk 0:02:54]} 5. Nb3 {[%clk 0:02:52]}  Nf6 {[%clk 0:02:49]} 6. d3 {[%clk 0:02:51]}  exd3 {[%clk 0:02:45]} 7. cxd3 {[%clk 0:02:52]}  g6 {[%clk 0:02:41]} 8. O-O {[%clk 0:02:48]}  Bg7 {[%clk 0:02:41]} 9. Nc3 {[%clk 0:02:48]}  O-O {[%clk 0:02:37]} 10. d4 {[%clk 0:02:47]}  c4 {[%clk 0:02:34]} 11. Nd2 {[%clk 0:02:46]}  d5 {[%clk 0:02:31]} 12. Nf3 {[%clk 0:02:43]}  Ne4 {[%clk 0:02:26]} 13. Nxe4 {[%clk 0:02:34]}  dxe4 {[%clk 0:02:27]} 14. Ne5 {[%clk 0:02:34]}  Qd5 {[%clk 0:01:41]} 15. f4 {[%clk 0:02:18]}  Nc6 {[%clk 0:01:37]} 16. e3 {[%clk 0:02:15]}  f5 {[%clk 0:01:14]} 17. Qe2 {[%clk 0:01:54]}  Be6 {[%clk 0:01:04]} 18. Bd2 {[%clk 0:01:48]}  Nxe5 {[%clk 0:01:00]} 19. fxe5 {[%clk 0:01:46]}  Rfd8 {[%clk 0:00:55]} 20. Bb4 {[%clk 0:01:41]}  a5 {[%clk 0:00:44]} 21. Bd6 {[%clk 0:01:35]}  b5 {[%clk 0:00:35]} 22. g4 {[%clk 0:01:30]}  b4 {[%clk 0:00:29]} 23. gxf5 {[%clk 0:01:23]}  gxf5 {[%clk 0:00:28]} 24. Qh5 {[%clk 0:01:19]}  Kh8 {[%clk 0:00:19]} 25. Rxf5 {[%clk 0:01:17]}  Bxf5 {[%clk 0:00:17]} 26. Qxf5 {[%clk 0:01:18]}  Rxd6 {[%clk 0:00:17]} 27. Bxe4 {[%clk 0:01:18]}  Qg8 {[%clk 0:00:08]} 28. exd6 {[%clk 0:01:18]}  Bxd4+ {[%clk 0:00:04]} 29. Kh1 {[%clk 0:01:18]}  Bxb2 {[%clk 0:00:03]} 30. Rg1 {[%clk 0:01:14]}  Qf7 {[%clk 0:00:03]} 31. Qxf7 {[%clk 0:01:13]} 1-0


[Site "https://www.chess.com"]

[Event "Titled Tuesday Blitz June 27 Late 2023"]
[White "Shapiro, Daniel"]
[Black "Ozates, Tuna"]
[WhiteFideId "2001780"]
[BlackFideId "6354521"]
[WhiteElo "2340"]
[BlackElo "2562"]
[Result "0-1"]
[Round "5"]
[TimeControl "180+2"]
[Date "2023.06.27"]
[WhiteClock "0:00:00"]
[BlackClock "0:00:14"]
[Board "101"]

1. d4 {[%clk 0:03:00]}  f5 {[%clk 0:02:53]} 2. c4 {[%clk 0:02:57]}  Nf6 {[%clk 0:02:45]} 3. Nf3 {[%clk 0:02:57]}  e6 {[%clk 0:02:43]} 4. Qc2 {[%clk 0:02:57]}  Be7 {[%clk 0:02:44]} 5. b3 {[%clk 0:02:48]}  O-O {[%clk 0:02:44]} 6. g3 {[%clk 0:02:48]}  a5 {[%clk 0:02:43]} 7. a3 {[%clk 0:02:42]}  d6 {[%clk 0:02:43]} 8. Bg2 {[%clk 0:02:40]}  Ne4 {[%clk 0:02:41]} 9. O-O {[%clk 0:02:38]}  Bf6 {[%clk 0:02:42]} 10. Bb2 {[%clk 0:02:38]}  Nc6 {[%clk 0:02:41]} 11. Nbd2 {[%clk 0:02:36]}  Nxd2 {[%clk 0:02:38]} 12. Qxd2 {[%clk 0:02:36]}  e5 {[%clk 0:02:38]} 13. Rfd1 {[%clk 0:02:17]}  e4 {[%clk 0:02:35]} 14. Ne1 {[%clk 0:02:18]}  a4 {[%clk 0:02:33]} 15. b4 {[%clk 0:02:15]}  d5 {[%clk 0:02:32]} 16. f3 {[%clk 0:02:09]}  exf3 {[%clk 0:01:59]} 17. Bxf3 {[%clk 0:02:03]}  Ne7 {[%clk 0:01:54]} 18. c5 {[%clk 0:01:48]}  c6 {[%clk 0:01:47]} 19. Nd3 {[%clk 0:01:48]}  Ng6 {[%clk 0:01:47]} 20. b5 {[%clk 0:01:33]}  Bg5 {[%clk 0:01:44]} 21. e3 {[%clk 0:01:01]}  Re8 {[%clk 0:01:41]} 22. Nf4 {[%clk 0:00:57]}  Bxf4 {[%clk 0:01:32]} 23. exf4 {[%clk 0:00:56]}  Nf8 {[%clk 0:01:29]} 24. Re1 {[%clk 0:00:55]}  Bd7 {[%clk 0:01:26]} 25. b6 {[%clk 0:00:53]}  Be6 {[%clk 0:01:21]} 26. Bd1 {[%clk 0:00:51]}  Nd7 {[%clk 0:01:21]} 27. Bc2 {[%clk 0:00:49]}  Nf6 {[%clk 0:01:20]} 28. Qd1 {[%clk 0:00:46]}  Ne4 {[%clk 0:01:19]} 29. Bxa4 {[%clk 0:00:46]}  g5 {[%clk 0:01:13]} 30. fxg5 {[%clk 0:00:43]}  Qxg5 {[%clk 0:01:14]} 31. Bc1 {[%clk 0:00:42]}  Qg7 {[%clk 0:01:12]} 32. Bc2 {[%clk 0:00:32]}  Bf7 {[%clk 0:01:10]} 33. Bf4 {[%clk 0:00:26]}  Re7 {[%clk 0:00:57]} 34. a4 {[%clk 0:00:21]}  Rae8 {[%clk 0:00:44]} 35. a5 {[%clk 0:00:21]}  Nc3 {[%clk 0:00:44]} 36. Qd2 {[%clk 0:00:21]}  Rxe1+ {[%clk 0:00:44]} 37. Rxe1 {[%clk 0:00:20]}  Rxe1+ {[%clk 0:00:44]} 38. Qxe1 {[%clk 0:00:20]}  Qxd4+ {[%clk 0:00:45]} 39. Qe3 {[%clk 0:00:21]}  Qb4 {[%clk 0:00:24]} 40. Be5 {[%clk 0:00:18]}  Ne4 {[%clk 0:00:20]} 41. Qh6 {[%clk 0:00:09]}  Qe1+ {[%clk 0:00:16]} 42. Kg2 {[%clk 0:00:09]}  Qe2+ {[%clk 0:00:15]} 43. Kh3 {[%clk 0:00:09]}  Nf2+ {[%clk 0:00:14]} 44. Kg2 {[%clk 0:00:00]}  Ng4+ {[%clk 0:00:14]} 0-1


[Site "https://www.chess.com"]

[Event "Titled Tuesday Blitz June 27 Late 2023"]
[White "ElDivis"]
[Black "Fajdetic, Hrvoje"]
[BlackFideId "14501945"]
[WhiteElo "2558"]
[BlackElo "2332"]
[Result "1-0"]
[Round "5"]
[TimeControl "180+2"]
[Date "2023.06.27"]
[WhiteClock "0:00:40"]
[BlackClock "0:00:03"]
[Board "103"]

1. e4 {[%clk 0:03:00]}  c5 {[%clk 0:02:56]} 2. Nc3 {[%clk 0:03:00]}  g6 {[%clk 0:02:51]} 3. Nge2 {[%clk 0:02:57]}  Bg7 {[%clk 0:02:50]} 4. d4 {[%clk 0:02:58]}  cxd4 {[%clk 0:02:48]} 5. Nxd4 {[%clk 0:02:59]}  Nc6 {[%clk 0:02:48]} 6. Be3 {[%clk 0:02:59]}  Nf6 {[%clk 0:02:46]} 7. Nb3 {[%clk 0:02:57]}  d6 {[%clk 0:02:36]} 8. Qd2 {[%clk 0:02:55]}  Ng4 {[%clk 0:02:25]} 9. Bg5 {[%clk 0:02:51]}  h6 {[%clk 0:02:23]} 10. Bf4 {[%clk 0:02:51]}  g5 {[%clk 0:02:18]} 11. Bg3 {[%clk 0:02:51]}  Be6 {[%clk 0:02:08]} 12. O-O-O {[%clk 0:02:49]}  Rc8 {[%clk 0:02:05]} 13. Kb1 {[%clk 0:02:47]}  Nge5 {[%clk 0:01:51]} 14. h4 {[%clk 0:02:30]}  g4 {[%clk 0:01:39]} 15. Nd5 {[%clk 0:02:29]}  a5 {[%clk 0:01:31]} 16. Bb5 {[%clk 0:02:22]}  O-O {[%clk 0:01:24]} 17. Bf4 {[%clk 0:02:18]}  Kh7 {[%clk 0:01:17]} 18. a4 {[%clk 0:02:08]}  Nb4 {[%clk 0:01:08]} 19. Nxb4 {[%clk 0:01:59]}  axb4 {[%clk 0:01:09]} 20. Qxb4 {[%clk 0:01:56]}  Nc4 {[%clk 0:00:51]} 21. Nd4 {[%clk 0:01:29]}  Qb6 {[%clk 0:00:37]} 22. Nxe6 {[%clk 0:01:12]}  fxe6 {[%clk 0:00:30]} 23. Bc1 {[%clk 0:00:52]}  Rxf2 {[%clk 0:00:20]} 24. Rhf1 {[%clk 0:00:47]}  Rxf1 {[%clk 0:00:07]} 25. Rxf1 {[%clk 0:00:48]}  Rf8 {[%clk 0:00:05]} 26. Rxf8 {[%clk 0:00:46]}  Bxf8 {[%clk 0:00:06]} 27. Qxc4 {[%clk 0:00:46]}  Qg1 {[%clk 0:00:05]} 28. Qxe6 {[%clk 0:00:44]}  Qxg2 {[%clk 0:00:04]} 29. Qf5+ {[%clk 0:00:41]}  Kg8 {[%clk 0:00:03]} 30. Bc4+ {[%clk 0:00:40]}  Kh8 {[%clk 0:00:03]} 31. Qxf8+ {[%clk 0:00:40]}  Kh7 {[%clk 0:00:03]} 32. Qg8# {[%clk 0:00:40]} 1-0


[Site "https://www.chess.com"]

[Event "Titled Tuesday Blitz June 27 Late 2023"]
[White "O`Gorman, Tom"]
[Black "Spichkin, Alexander"]
[WhiteFideId "2508249"]
[BlackFideId "4144074"]
[WhiteElo "2549"]
[BlackElo "2322"]
[Result "1-0"]
[Round "5"]
[TimeControl "180+2"]
[Date "2023.06.27"]
[WhiteClock "0:00:45"]
[BlackClock "0:00:49"]
[Board "104"]

1. e4 {[%clk 0:03:00]}  e5 {[%clk 0:02:46]} 2. Nf3 {[%clk 0:03:00]}  d5 {[%clk 0:02:47]} 3. exd5 {[%clk 0:03:00]}  e4 {[%clk 0:02:46]} 4. Qe2 {[%clk 0:03:00]}  Nf6 {[%clk 0:02:47]} 5. d3 {[%clk 0:02:59]}  Bb4+ {[%clk 0:02:47]} 6. c3 {[%clk 0:02:59]}  O-O {[%clk 0:02:47]} 7. dxe4 {[%clk 0:02:57]}  Bc5 {[%clk 0:02:47]} 8. Bg5 {[%clk 0:02:55]}  c6 {[%clk 0:02:47]} 9. dxc6 {[%clk 0:02:45]}  Nxc6 {[%clk 0:02:47]} 10. Nbd2 {[%clk 0:02:45]}  Re8 {[%clk 0:02:48]} 11. O-O-O {[%clk 0:02:44]}  Bg4 {[%clk 0:02:45]} 12. h3 {[%clk 0:02:42]}  Bxf3 {[%clk 0:02:44]} 13. Nxf3 {[%clk 0:02:34]}  Qe7 {[%clk 0:02:41]} 14. Qc2 {[%clk 0:02:24]}  h6 {[%clk 0:02:23]} 15. Bxf6 {[%clk 0:02:22]}  Qxf6 {[%clk 0:02:23]} 16. Bc4 {[%clk 0:02:22]}  a6 {[%clk 0:02:17]} 17. Bd5 {[%clk 0:02:21]}  Rac8 {[%clk 0:02:16]} 18. Kb1 {[%clk 0:02:16]}  b5 {[%clk 0:02:16]} 19. Rhe1 {[%clk 0:02:04]}  a5 {[%clk 0:02:10]} 20. Qe2 {[%clk 0:01:34]}  b4 {[%clk 0:02:06]} 21. c4 {[%clk 0:01:35]}  Nd4 {[%clk 0:02:00]} 22. Nxd4 {[%clk 0:01:34]}  Bxd4 {[%clk 0:02:01]} 23. Rd3 {[%clk 0:01:32]}  a4 {[%clk 0:01:52]} 24. Rf3 {[%clk 0:01:31]}  Qb6 {[%clk 0:01:46]} 25. Rxf7 {[%clk 0:01:28]}  Kh8 {[%clk 0:01:44]} 26. Rb7 {[%clk 0:01:21]}  Qc5 {[%clk 0:01:41]} 27. Rb5 {[%clk 0:01:17]}  Qe7 {[%clk 0:01:38]} 28. Qd2 {[%clk 0:01:15]}  Bc5 {[%clk 0:01:35]} 29. Rb7 {[%clk 0:01:12]}  Qd6 {[%clk 0:01:32]} 30. f4 {[%clk 0:01:11]}  a3 {[%clk 0:01:32]} 31. b3 {[%clk 0:01:04]}  Rc7 {[%clk 0:01:22]} 32. e5 {[%clk 0:01:02]}  Qe7 {[%clk 0:01:22]} 33. Rxc7 {[%clk 0:01:01]}  Qxc7 {[%clk 0:01:22]} 34. Qd3 {[%clk 0:00:56]}  Qe7 {[%clk 0:01:21]} 35. Qg6 {[%clk 0:00:55]}  Rd8 {[%clk 0:01:07]} 36. Be4 {[%clk 0:00:50]}  Kg8 {[%clk 0:01:06]} 37. Qh7+ {[%clk 0:00:49]}  Kf7 {[%clk 0:01:03]} 38. Bd5+ {[%clk 0:00:50]}  Ke8 {[%clk 0:01:02]} 39. Qg6+ {[%clk 0:00:48]}  Kf8 {[%clk 0:01:00]} 40. Qf5+ {[%clk 0:00:43]}  Ke8 {[%clk 0:00:58]} 41. Bc6+ {[%clk 0:00:43]}  Rd7 {[%clk 0:00:56]} 42. Bxd7+ {[%clk 0:00:43]}  Qxd7 {[%clk 0:00:57]} 43. Qxd7+ {[%clk 0:00:43]}  Kxd7 {[%clk 0:00:57]} 44. Kc2 {[%clk 0:00:43]}  Bd4 {[%clk 0:00:57]} 45. Kd3 {[%clk 0:00:43]}  Bc3 {[%clk 0:00:57]} 46. Re2 {[%clk 0:00:43]}  Ke6 {[%clk 0:00:58]} 47. Ke4 {[%clk 0:00:44]}  g6 {[%clk 0:00:57]} 48. g4 {[%clk 0:00:43]}  Bb2 {[%clk 0:00:55]} 49. f5+ {[%clk 0:00:44]}  Ke7 {[%clk 0:00:53]} 50. Kd5 {[%clk 0:00:45]}  Bc3 {[%clk 0:00:52]} 51. f6+ {[%clk 0:00:45]}  Kf7 {[%clk 0:00:52]} 52. e6+ {[%clk 0:00:44]}  Kxf6 {[%clk 0:00:49]} 53. e7 {[%clk 0:00:45]} 1-0


[Site "https://www.chess.com"]

[Event "Titled Tuesday Blitz June 27 Late 2023"]
[White "Bruedigam, Martin"]
[Black "StarkyNZ"]
[WhiteFideId "24608033"]
[WhiteElo "2535"]
[BlackElo "2270"]
[Result "1/2-1/2"]
[Round "5"]
[TimeControl "180+2"]
[Date "2023.06.27"]
[WhiteClock "0:00:09"]
[BlackClock "0:00:08"]
[Board "109"]

1. c4 {[%clk 0:03:00]}  e5 {[%clk 0:02:58]} 2. g3 {[%clk 0:02:59]}  Nc6 {[%clk 0:02:56]} 3. Bg2 {[%clk 0:02:58]}  Nf6 {[%clk 0:02:54]} 4. Nc3 {[%clk 0:02:58]}  Bc5 {[%clk 0:02:54]} 5. e3 {[%clk 0:02:57]}  a5 {[%clk 0:02:53]} 6. Nge2 {[%clk 0:02:57]}  O-O {[%clk 0:02:46]} 7. O-O {[%clk 0:02:57]}  Re8 {[%clk 0:02:41]} 8. d4 {[%clk 0:02:57]}  exd4 {[%clk 0:02:41]} 9. exd4 {[%clk 0:02:58]}  Be7 {[%clk 0:02:34]} 10. d5 {[%clk 0:02:50]}  Ne5 {[%clk 0:02:32]} 11. b3 {[%clk 0:02:51]}  Bc5 {[%clk 0:02:26]} 12. Na4 {[%clk 0:02:45]}  Bf8 {[%clk 0:02:11]} 13. Bb2 {[%clk 0:02:43]}  d6 {[%clk 0:02:11]} 14. h3 {[%clk 0:02:43]}  Bd7 {[%clk 0:02:07]} 15. Nac3 {[%clk 0:02:43]}  b6 {[%clk 0:02:06]} 16. Nd4 {[%clk 0:02:41]}  Qc8 {[%clk 0:01:41]} 17. Kh2 {[%clk 0:02:39]}  Ng6 {[%clk 0:01:31]} 18. a4 {[%clk 0:02:27]}  Ne7 {[%clk 0:01:25]} 19. g4 {[%clk 0:02:22]}  Ng6 {[%clk 0:01:10]} 20. Qd3 {[%clk 0:02:13]}  Nf4 {[%clk 0:01:08]} 21. Qg3 {[%clk 0:02:12]}  Nxg2 {[%clk 0:01:06]} 22. Kxg2 {[%clk 0:02:13]}  Ne4 {[%clk 0:01:04]} 23. Nxe4 {[%clk 0:02:12]}  Rxe4 {[%clk 0:01:05]} 24. Rae1 {[%clk 0:02:12]}  Qe8 {[%clk 0:01:03]} 25. Qc3 {[%clk 0:02:09]}  Qe7 {[%clk 0:00:51]} 26. f3 {[%clk 0:02:07]}  Rxe1 {[%clk 0:00:47]} 27. Rxe1 {[%clk 0:02:08]}  Qh4 {[%clk 0:00:43]} 28. Re4 {[%clk 0:02:03]}  h5 {[%clk 0:00:42]} 29. Ne2 {[%clk 0:01:48]}  hxg4 {[%clk 0:00:38]} 30. hxg4 {[%clk 0:01:39]}  Re8 {[%clk 0:00:37]} 31. Rxe8 {[%clk 0:01:35]}  Bxe8 {[%clk 0:00:38]} 32. Ng3 {[%clk 0:01:31]}  Bd7 {[%clk 0:00:38]} 33. Qe3 {[%clk 0:01:25]}  Qe7 {[%clk 0:00:29]} 34. Qd4 {[%clk 0:01:19]}  Qe1 {[%clk 0:00:26]} 35. Nh5 {[%clk 0:01:14]}  Qe2+ {[%clk 0:00:23]} 36. Kg3 {[%clk 0:01:13]}  Qe1+ {[%clk 0:00:19]} 37. Qf2 {[%clk 0:01:13]}  Qd1 {[%clk 0:00:16]} 38. Qe3 {[%clk 0:01:09]}  Qc2 {[%clk 0:00:14]} 39. Bd4 {[%clk 0:00:39]}  Qg6 {[%clk 0:00:12]} 40. Nf4 {[%clk 0:00:32]}  Qc2 {[%clk 0:00:11]} 41. Nh5 {[%clk 0:00:31]}  Qg6 {[%clk 0:00:10]} 42. Kf2 {[%clk 0:00:30]}  Qc2+ {[%clk 0:00:10]} 43. Kg1 {[%clk 0:00:27]}  Qb1+ {[%clk 0:00:10]} 44. Kh2 {[%clk 0:00:27]}  Qc2+ {[%clk 0:00:11]} 45. Kh3 {[%clk 0:00:26]}  Qg6 {[%clk 0:00:11]} 46. Ng3 {[%clk 0:00:24]}  Qh7+ {[%clk 0:00:10]} 47. Kg2 {[%clk 0:00:24]}  Qc2+ {[%clk 0:00:11]} 48. Kg1 {[%clk 0:00:24]}  Qb1+ {[%clk 0:00:11]} 49. Kf2 {[%clk 0:00:24]}  Qc2+ {[%clk 0:00:11]} 50. Ne2 {[%clk 0:00:25]}  Qg6 {[%clk 0:00:11]} 51. Nf4 {[%clk 0:00:17]}  Qc2+ {[%clk 0:00:12]} 52. Kg3 {[%clk 0:00:18]}  Qb1 {[%clk 0:00:10]} 53. Bc3 {[%clk 0:00:17]}  Qh7 {[%clk 0:00:09]} 54. Qd4 {[%clk 0:00:16]}  Qb1 {[%clk 0:00:05]} 55. Nh5 {[%clk 0:00:15]}  f6 {[%clk 0:00:03]} 56. Nf4 {[%clk 0:00:12]}  Qxb3 {[%clk 0:00:03]} 57. g5 {[%clk 0:00:08]}  Qc2 {[%clk 0:00:01]} 58. gxf6 {[%clk 0:00:07]}  Qh7 {[%clk 0:00:01]} 59. fxg7 {[%clk 0:00:04]}  Qxg7+ {[%clk 0:00:02]} 60. Qxg7+ {[%clk 0:00:04]}  Bxg7 {[%clk 0:00:03]} 61. Bxg7 {[%clk 0:00:04]}  Kxg7 {[%clk 0:00:04]} 62. Kf2 {[%clk 0:00:04]}  Bxa4 {[%clk 0:00:04]} 63. Ne6+ {[%clk 0:00:04]}  Kf6 {[%clk 0:00:04]} 64. Nxc7 {[%clk 0:00:05]}  Bb3 {[%clk 0:00:05]} 65. Na8 {[%clk 0:00:05]}  Bxc4 {[%clk 0:00:05]} 66. Nxb6 {[%clk 0:00:06]}  Bb3 {[%clk 0:00:05]} 67. Ke3 {[%clk 0:00:06]}  a4 {[%clk 0:00:06]} 68. Kd3 {[%clk 0:00:06]}  Ke5 {[%clk 0:00:06]} 69. Kc3 {[%clk 0:00:07]}  Bxd5 {[%clk 0:00:06]} 70. Nxa4 {[%clk 0:00:07]}  Bxf3 {[%clk 0:00:07]} 71. Kd2 {[%clk 0:00:08]}  Ba8 {[%clk 0:00:07]} 72. Nc3 {[%clk 0:00:08]}  Kd4 {[%clk 0:00:08]} 73. Nb5+ {[%clk 0:00:08]}  Kc5 {[%clk 0:00:08]} 74. Nxd6 {[%clk 0:00:09]} 1/2-1/2


[Site "https://www.chess.com"]

[Event "Titled Tuesday Blitz June 27 Late 2023"]
[White "Quirke, Jeffrey"]
[Black "Ismagilov, Damir"]
[WhiteFideId "2013029"]
[BlackFideId "34199982"]
[WhiteElo "2253"]
[BlackElo "2533"]
[Result "0-1"]
[Round "5"]
[TimeControl "180+2"]
[Date "2023.06.27"]
[WhiteClock "0:00:03"]
[BlackClock "0:00:20"]
[Board "110"]

1. e4 {[%clk 0:03:00]}  g6 {[%clk 0:02:59]} 2. d4 {[%clk 0:02:59]}  Bg7 {[%clk 0:02:59]} 3. c3 {[%clk 0:02:59]}  d6 {[%clk 0:02:58]} 4. Bd3 {[%clk 0:02:59]}  c5 {[%clk 0:02:56]} 5. Nf3 {[%clk 0:02:58]}  Bg4 {[%clk 0:02:42]} 6. dxc5 {[%clk 0:02:43]}  dxc5 {[%clk 0:02:39]} 7. h3 {[%clk 0:02:42]}  Bxf3 {[%clk 0:02:38]} 8. Qxf3 {[%clk 0:02:41]}  Nc6 {[%clk 0:02:37]} 9. Qe2 {[%clk 0:02:40]}  e5 {[%clk 0:02:24]} 10. O-O {[%clk 0:02:38]}  Nge7 {[%clk 0:02:23]} 11. Nd2 {[%clk 0:02:28]}  O-O {[%clk 0:02:22]} 12. a4 {[%clk 0:02:17]}  Qc7 {[%clk 0:02:19]} 13. Nc4 {[%clk 0:02:16]}  Rad8 {[%clk 0:01:53]} 14. Bg5 {[%clk 0:02:06]}  h6 {[%clk 0:01:49]} 15. Be3 {[%clk 0:01:58]}  b6 {[%clk 0:01:49]} 16. Rfd1 {[%clk 0:01:48]}  Rd7 {[%clk 0:01:47]} 17. Bc2 {[%clk 0:01:46]}  Rfd8 {[%clk 0:01:46]} 18. Rxd7 {[%clk 0:01:47]}  Rxd7 {[%clk 0:01:47]} 19. Bb3 {[%clk 0:01:32]}  Kh7 {[%clk 0:01:33]} 20. Rd1 {[%clk 0:01:27]}  Nc8 {[%clk 0:01:28]} 21. Bc1 {[%clk 0:01:22]}  Rxd1+ {[%clk 0:01:03]} 22. Qxd1 {[%clk 0:01:21]}  Qd8 {[%clk 0:01:04]} 23. Qe2 {[%clk 0:01:11]}  Nd6 {[%clk 0:01:02]} 24. Ne3 {[%clk 0:01:01]}  Na5 {[%clk 0:00:44]} 25. Bd5 {[%clk 0:01:00]}  Qd7 {[%clk 0:00:42]} 26. b4 {[%clk 0:00:52]}  cxb4 {[%clk 0:00:34]} 27. cxb4 {[%clk 0:00:52]}  Nc6 {[%clk 0:00:35]} 28. Qd2 {[%clk 0:00:13]}  Nd4 {[%clk 0:00:31]} 29. b5 {[%clk 0:00:13]}  Nb7 {[%clk 0:00:30]} 30. Bb2 {[%clk 0:00:12]}  Nc5 {[%clk 0:00:30]} 31. Bxd4 {[%clk 0:00:10]}  exd4 {[%clk 0:00:31]} 32. Nc4 {[%clk 0:00:10]}  Nxa4 {[%clk 0:00:30]} 33. Qb4 {[%clk 0:00:08]}  Nc3 {[%clk 0:00:29]} 34. Kh2 {[%clk 0:00:06]}  Nxd5 {[%clk 0:00:28]} 35. exd5 {[%clk 0:00:05]}  Qxd5 {[%clk 0:00:29]} 36. Nd2 {[%clk 0:00:04]}  Qe5+ {[%clk 0:00:27]} 37. g3 {[%clk 0:00:04]}  Qe1 {[%clk 0:00:22]} 38. Kg2 {[%clk 0:00:04]}  d3 {[%clk 0:00:20]} 39. Qb2 {[%clk 0:00:03]} 0-1


[Site "https://www.chess.com"]